fUSD/lending_fUSD_20250204
["ID","MTS","AMOUNT","RATE_DAILY","PERIOD"]
[351678691,1738708254761,-571.71697107,0.00011228,2]
[351678692,1738708254771,-500.0,0.00011228,2]
[351678693,1738708254780,-586.63,0.00011228,2]
[351678694,1738708254790,-1195.45,0.00011228,2]
[351678695,1738708254800,-1068.62,0.00011228,2]
[351678696,1738708254810,-524.89,0.00011228,2]
[351678697,1738708254819,-500.0,0.00011228,2]
[351678698,1738708254829,-500.0,0.00011228,2]
[351678699,1738708254839,-500.0,0.00011228,2]
[351678700,1738708254849,-500.0,0.00011228,2]
[351678701,1738708254861,-500.0,0.00011228,2]
[351678702,1738708254871,-658.5,0.00011228,2]
[351678703,1738708254881,-500.0,0.00011228,2]
[351678704,1738708254891,-500.0,0.00011228,2]
[351678705,1738708254900,-959.97,0.00011228,2]
[351678706,1738708254909,-500.0,0.00011228,2]
[351678707,1738708254919,-505.12,0.00011228,2]
[351678708,1738708254930,-500.0,0.00011228,2]
[351678709,1738708254940,-500.0,0.00011228,2]
[351678710,1738708254951,-500.0,0.00011228,2]
[351678711,1738708254961,-500.0,0.00011228,2]
[351678712,1738708254972,-500.0,0.00011228,2]
[351678713,1738708254981,-500.0,0.00011228,2]
[351678714,1738708254992,-500.0,0.00011228,2]
[351678715,1738708255001,-682.74,0.00011228,2]
[351678716,1738708255011,-500.0,0.00011228,2]
[351678717,1738708255021,-696.87,0.00011228,2]
[351678718,1738708255030,-500.0,0.00011228,2]
[351678719,1738708255040,-500.0,0.00011228,2]
[351678720,1738708255050,-500.0,0.00011228,2]
[351678721,1738708255059,-500.0,0.00011228,2]
[351678722,1738708255069,-500.0,0.00011228,2]
[351678723,1738708255080,-500.0,0.00011228,2]
[351678724,1738708255089,-500.0,0.00011228,2]
[351678725,1738708255099,-500.0,0.00011228,2]
[351678726,1738708255109,-823.32,0.00011228,2]
[351678727,1738708255119,-865.37,0.00011228,2]
[351678728,1738708255129,-503.2,0.00011228,2]
[351678729,1738708255138,-563.67,0.00011228,2]
[351678730,1738708255147,-500.0,0.00011228,2]
[351678731,1738708255156,-500.0,0.00011228,2]
[351678732,1738708255166,-589.17,0.00011228,2]
[351678733,1738708255175,-151.622,0.00011232,2]
[351678734,1738708255184,-2706.032,0.00011232,2]
[351678735,1738708255194,-150.0,0.0001124,2]
[351678736,1738708255204,-150.0,0.00011242,2]
[351678737,1738708255214,-150.0,0.00011263,2]
[351678738,1738708255224,-150.0,0.00011263,2]
[351678739,1738708255234,-1481.61429486,0.00011263,2]
[351678740,1738708255243,-150.0,0.00011266,2]
[351678741,1738708255253,-337.0391688,0.00011268,2]
[351678742,1738708255262,-150.0,0.00011273,2]
[351678743,1738708255272,-150.0,0.00011277,2]
[351678744,1738708255282,-150.0,0.00011297,2]
[351678745,1738708255291,-1000.0,0.00011299,2]
[351678746,1738708255301,-150.0,0.00011299,2]
[351678747,1738708255311,-150.0,0.00011301,2]
[351678748,1738708255320,-150.0,0.00011301,2]
[351678749,1738708255333,-150.0,0.00011305,2]
[351678750,1738708255342,-150.0,0.00011305,2]
[351678751,1738708255352,-1000.0,0.0001131,2]
[351678752,1738708255363,-150.0,0.00011312,2]
[351678753,1738708255374,-150.0,0.00011322,2]
[351678754,1738708255384,-1000.0,0.0001134,2]
[351678755,1738708255393,-150.0,0.00011342,2]
[351678756,1738708255402,-500.0,0.00011364,2]
[351678757,1738708255414,-274.36082486,0.00011364,2]
[351678758,1738708255423,-176.91,0.00011364,2]
[351678759,1738708255432,-500.0,0.00011364,2]
[351678760,1738708255442,-182.62,0.00011364,2]
[351678761,1738708255451,-500.0,0.00011365,2]
[351678762,1738708255460,-296.58,0.00011365,2]
[351678763,1738708255470,-500.0,0.00011365,2]
[351678764,1738708255479,-351.723489,0.00011365,2]
[351678765,1738708255489,-310.920686,0.00011365,2]
[351678766,1738708255499,-500.0,0.00011365,2]
[351678767,1738708255508,-500.0,0.00011365,2]
[351678768,1738708255518,-500.0,0.00011365,2]
[351678769,1738708255527,-500.0,0.00011365,2]
[351678770,1738708255537,-500.0,0.00011365,2]
[351678771,1738708255547,-500.0,0.00011365,2]
[351678772,1738708255557,-500.0,0.00011365,2]
[351678773,1738708255567,-700.02,0.00011365,2]
[351678774,1738708255576,-500.0,0.00011365,2]
[351678775,1738708255586,-500.0,0.00011365,2]
[351678776,1738708255596,-500.0,0.00011365,2]
[351678777,1738708255606,-500.0,0.00011365,2]
[351678778,1738708255617,-586.63,0.00011365,2]
[351678779,1738708255627,-1195.45,0.00011365,2]
[351678780,1738708255636,-1068.62,0.00011365,2]
[351678781,1738708255646,-524.89,0.00011365,2]
[351678782,1738708255655,-500.0,0.00011365,2]
[351678783,1738708255666,-500.0,0.00011365,2]
[351678784,1738708255675,-551.23956119,0.00011365,2]
[351678785,1738708255685,-643.44367505,0.00011365,2]
[351678786,1738708255694,-241.76177964,0.00011365,2]
[351678787,1738708255704,-658.5,0.00011365,2]
[351678788,1738708255713,-500.0,0.00011365,2]
[351678789,1738708255723,-500.0,0.00011365,2]
[351678790,1738708255732,-959.97,0.00011365,2]
[351678791,1738708255741,-500.0,0.00011365,2]
[351678792,1738708255751,-505.12,0.00011365,2]
[351678793,1738708255761,-625.77,0.00011365,2]
[351678794,1738708255771,-500.0,0.00011365,2]
[351678795,1738708255780,-344.97,0.00011365,2]
[351678796,1738708255790,-500.0,0.00011365,2]
[351678797,1738708255799,-500.0,0.00011365,2]
[351678798,1738708255809,-500.0,0.00011365,2]
[351678799,1738708255818,-500.0,0.00011365,2]
[351678800,1738708255828,-682.74,0.00011365,2]
[351678801,1738708255837,-500.0,0.00011365,2]
[351678802,1738708255847,-696.87,0.00011365,2]
[351678803,1738708255857,-500.0,0.00011365,2]
[351678804,1738708255867,-500.0,0.00011365,2]
[351678805,1738708255877,-500.0,0.00011365,2]
[351678806,1738708255887,-201.61989441,0.00011365,2]
[351678807,1738708255896,-500.0,0.00011365,2]
[351678808,1738708255905,-500.0,0.00011365,2]
[351678809,1738708255915,-500.0,0.00011365,2]
[351678810,1738708255924,-500.0,0.00011365,2]
[351678811,1738708255934,-823.32,0.00011365,2]
[351678812,1738708255943,-865.37,0.00011365,2]
[351678813,1738708255953,-503.2,0.00011365,2]
[351678814,1738708255962,-563.67,0.00011365,2]
[351678815,1738708255971,-500.0,0.00011365,2]
[351678816,1738708255980,-178.65,0.00011365,2]
[351678817,1738708255989,-150.0,0.00011371,2]
[351678818,1738708255999,-4000.0,0.0001138,2]
[351678819,1738708256008,-150.0,0.00011383,2]
[351678820,1738708256017,-368.59304271,0.00011398,2]
[351678821,1738708256027,-368.59304268,0.00011398,2]
[351678822,1738708256036,-368.59304268,0.00011399,2]
[351678823,1738708256046,-368.59304268,0.00011399,2]
[351678824,1738708256055,-150.0,0.00011399,2]
[351678825,1738708256064,-176.52415156,0.00011399,2]
[351678826,1738708256120,-368.59304268,0.00011399,2]
[351678827,1738708256129,-368.59304268,0.000114,2]
[351678828,1738708256138,-368.59304268,0.000114,2]
[351678829,1738708256148,-288.66656231,0.000114,2]
[351678830,1738708256157,-215.10642892,0.000114,2]
[351678831,1738708256166,-1481.61429486,0.000114,2]
[351678832,1738708256175,-500.0,0.00011407,2]
[351678833,1738708256184,-2000.0,0.00011407,2]
[351678834,1738708256194,-200.0,0.00011407,2]
[351678835,1738708256203,-150.0,0.00011417,2]
[351678836,1738708256212,-300.0,0.00011418,2]
[351678837,1738708256221,-150.0,0.00011421,2]
[351678838,1738708256230,-300.0,0.00011426,2]
[351678839,1738708256239,-150.0,0.00011435,2]
[351678840,1738708256248,-150.0,0.00011441,2]
[351678841,1738708256257,-150.0,0.00011445,2]
[351678842,1738708256266,-150.0,0.00011448,2]
[351678843,1738708256275,-150.0,0.00011448,2]
[351678844,1738708256284,-150.0,0.00011449,2]
[351678845,1738708256293,-150.0,0.00011461,2]
[351678846,1738708256303,-150.0,0.0001147,2]
[351678847,1738708256315,-500.0,0.00011473,2]
[351678848,1738708256324,-500.0,0.00011473,2]
[351678849,1738708256333,-500.0,0.00011473,2]
[351678850,1738708256342,-150.0,0.00011476,2]
[351678851,1738708256351,-150.0,0.00011477,2]
[351678852,1738708256362,-150.0,0.00011479,2]
[351678853,1738708256371,-150.0,0.00011481,2]
[351678854,1738708256380,-150.0,0.00011483,2]
[351678855,1738708256392,-153.0,0.00011484,2]
[351678856,1738708256401,-153.0,0.00011485,2]
[351678857,1738708256410,-153.0,0.00011486,2]
[351678858,1738708256420,-153.0,0.00011487,2]
[351678859,1738708256430,-150.0,0.00011491,2]
[351678860,1738708256439,-150.0,0.00011493,2]
[351678861,1738708256448,-300.0,0.00011496,2]
[351678862,1738708256457,-1715.0,0.00011497,2]
[351678863,1738708256466,-1378.19954175,0.00011497,3]
[351678864,1738708256474,-1378.19954175,0.00011497,3]
[351678865,1738708256483,-500.0,0.00011497,2]
[351678866,1738708256492,-300.0,0.00011497,2]
[351678867,1738708256501,-200.0,0.00011498,2]
[351678868,1738708256511,-745.87763971,0.00011499,2]
[351678869,1738708256521,-235.5702155,0.00011499,2]
[351678870,1738708256530,-121746.135728,0.00011499,2]
[351678871,1738708256551,-3336.2,0.00011499,2]
[351678872,1738708256569,-500.0,0.00010269,2]
[351678873,1738708256578,-1587.729095,0.00011499,2]
[351678874,1738708280540,539.71,8.535e-05,2]
[351678876,1738708379061,5039.3202,8.836e-05,2]
[351678879,1738708711537,-2061.23823834,8.973e-05,2]
[351678902,1738709431882,-300.0,8.972e-05,2]
[351678903,1738709431892,-688.468,8.973e-05,2]
[351678913,1738709432610,-1139.60616166,8.973e-05,2]
[351678914,1738709432621,-605.70171631,8.973e-05,2]
[351678915,1738709432643,-322.26793109,8.973e-05,2]
[351678916,1738709432654,-272.47,8.973e-05,2]
[351678917,1738709432665,-7719.6487526,8.973e-05,2]
[351678918,1738709432674,-1000.0,0.00010052,2]
[351678919,1738709432685,-150.0,0.00010055,2]
[351678920,1738709432698,-166.7,0.00010061,2]
[351678921,1738709432707,-150.0,0.00010073,2]
[351678922,1738709432717,-379.09,0.00010073,2]
[351678923,1738709432727,-372.85,0.00010073,2]
[351678924,1738709432738,-378.33,0.00010073,2]
[351678925,1738709432747,-377.85,0.00010073,2]
[351678926,1738709432757,-376.63,0.00010073,2]
[351678927,1738709432768,-367.93,0.00010073,2]
[351678928,1738709432777,-380.55,0.00010074,2]
[351678929,1738709432786,-369.04,0.00010074,2]
[351678930,1738709432796,-378.54,0.00010074,2]
[351678931,1738709432805,-377.41,0.00010074,2]
[351678932,1738709432814,-379.06,0.00010074,2]
[351678933,1738709432824,-379.1,0.00010074,2]
[351678934,1738709432833,-368.18,0.00010074,2]
[351678935,1738709432842,-372.9,0.00010074,2]
[351678936,1738709432852,-374.78,0.00010074,2]
[351678937,1738709432863,-377.29,0.00010074,2]
[351678938,1738709432872,-378.7,0.00010074,2]
[351678939,1738709432881,-813.35,0.00010137,2]
[351678940,1738709432892,-5917.0,0.00010137,2]
[351678941,1738709432902,-185.52,0.00010199,2]
[351678942,1738709432912,-5381.3,0.00010202,2]
[351678943,1738709432921,-2531.82840826,0.00010268,2]
[351678944,1738709432931,-379.62,0.00010268,2]
[351678945,1738709432940,-377.14,0.00010268,2]
[351678946,1738709432949,-369.93,0.00010268,2]
[351678947,1738709432959,-378.46,0.00010268,2]
[351678948,1738709433221,-382.33,0.00010268,2]
[351678949,1738709433232,-367.99,0.00010268,2]
[351678950,1738709433242,-377.74,0.00010268,2]
[351678951,1738709433252,-376.05,0.00010269,2]
[351678952,1738709433262,-500.0,0.00010269,2]
[351678953,1738709433272,-466.68,0.00010269,2]
[351678954,1738709433282,-500.0,0.00010269,2]
[351678955,1738709433292,-500.0,0.00010269,2]
[351678956,1738709433302,-500.0,0.00010269,2]
[351678957,1738709433312,-500.0,0.00010269,2]
[351678958,1738709433322,-500.0,0.00010269,2]
[351678959,1738709433333,-500.0,0.00010269,2]
[351678960,1738709433343,-500.0,0.00010269,2]
[351678961,1738709433353,-500.0,0.00010269,2]
[351678962,1738709433363,-500.0,0.00010269,2]
[351678963,1738709433374,-343.62,0.00010269,2]
[351678964,1738709433384,-464.72462195,0.00010269,2]
[351678965,1738709433394,-500.0,0.00010269,2]
[351678966,1738709433403,-500.0,0.00010269,2]
[351678967,1738709433413,-500.0,0.00010269,2]
[351678968,1738709433422,-500.0,0.00010269,2]
[351678969,1738709433432,-500.0,0.00010269,2]
[351678970,1738709433441,-422.6,0.00010269,2]
[351678971,1738709433451,-500.0,0.00010269,2]
[351678972,1738709433461,-301.82,0.00010269,2]
[351678973,1738709433470,-500.0,0.00010269,2]
[351678974,1738709433480,-246.04,0.00010269,2]
[351678975,1738709433490,-204.26,0.00010269,2]
[351678976,1738709433499,-500.0,0.00010269,2]
[351678977,1738709433509,-500.0,0.00010269,2]
[351678978,1738709433519,-500.0,0.00010269,2]
[351678979,1738709433528,-500.0,0.00010269,2]
[351678980,1738709433538,-500.0,0.00010269,2]
[351678981,1738709433547,-500.0,0.00010269,2]
[351678982,1738709433557,-500.0,0.00010269,2]
[351678983,1738709433567,-500.0,0.00010269,2]
[351678984,1738709433576,-500.0,0.00010269,2]
[351678985,1738709433586,-500.0,0.00010269,2]
[351678986,1738709433596,-500.0,0.00010269,2]
[351678987,1738709433606,-500.0,0.00010269,2]
[351678988,1738709433616,-500.0,0.00010269,2]
[351678989,1738709433626,-500.0,0.00010269,2]
[351678990,1738709433635,-500.0,0.00010269,2]
[351678991,1738709433645,-287.68127972,0.00010269,2]
[351678992,1738709433657,-212.31872028,0.00010269,2]
[351678993,1738709433667,-500.0,0.00010269,2]
[351678994,1738709433676,-500.0,0.00010269,2]
[351678995,1738709433688,-268.1,0.00010269,2]
[351678996,1738709433697,-500.0,0.00010269,2]
[351678997,1738709433707,-500.0,0.00010269,2]
[351678998,1738709433716,-500.0,0.00010269,2]
[351678999,1738709433727,-500.0,0.00010269,2]
[351679000,1738709433736,-329.04,0.00010269,2]
[351679001,1738709433745,-500.0,0.00010269,2]
[351679002,1738709433755,-500.0,0.00010269,2]
[351679003,1738709433766,-500.0,0.00010269,2]
[351679004,1738709433776,-500.0,0.00010269,2]
[351679005,1738709433785,-479.61127972,0.00010269,2]
[351679006,1738709433797,-20.38872028,0.00010269,2]
[351679007,1738709433806,-500.0,0.00010269,2]
[351679008,1738709433815,-511.37030246,0.00010269,2]
[351679009,1738709433825,-500.0,0.00010269,2]
[351679010,1738709433834,-500.0,0.00010269,2]
[351679011,1738709433844,-500.0,0.00010269,2]
[351679012,1738709433853,-163.45,0.00010269,2]
[351679013,1738709433863,-376.49597726,0.00010269,2]
[351679014,1738709433874,-123.50402274,0.00010269,2]
[351679015,1738709433884,-500.0,0.00010269,2]
[351679016,1738709433894,-574.2,0.00010269,2]
[351679017,1738709433903,-500.0,0.00010269,2]
[351679018,1738709433913,-225.16,0.00010269,2]
[351679019,1738709433922,-500.0,0.00010269,2]
[351679020,1738709433932,-500.0,0.00010269,2]
[351679021,1738709433942,-500.0,0.00010269,2]
[351679022,1738709433952,-94.3859774,0.00010269,2]
[351679023,1738709433964,-143.1340226,0.00010269,2]
[351679024,1738709433973,-500.0,0.00010269,2]
[351679025,1738709433983,-500.0,0.00010269,2]
[351679026,1738709433992,-188.32,0.00010327,2]
[351679027,1738709434001,-500.0,0.00010406,2]
[351679028,1738709434011,-500.0,0.00010406,2]
[351679029,1738709434020,-169.79991809,0.00010406,2]
[351679030,1738709434032,-293.49962424,0.00010406,2]
[351679031,1738709437722,-185.97045767,0.00010406,2]
[351679032,1738709437732,-235.62,0.00010406,2]
[351679033,1738709437742,-286.49,0.00010543,2]
[351679034,1738709437751,-250.0,0.00010561,2]
[351679035,1738709437760,-150.44,0.00010574,2]
[351679036,1738709437771,-152.27,0.00010768,2]
[351679037,1738709437781,-539.71,0.00010799,2]
[351679038,1738709437791,-150.0,0.00010959,2]
[351679039,1738709437800,-739.84087703,0.00011,2]
[351679040,1738709437969,-28150.48694385,0.00011,2]
[351679041,1738709437979,-1669.02,0.00011041,2]
[351679042,1738709437990,-373.9,0.0001109,2]
[351679043,1738709437999,-431.43955898,0.00011149,2]
[351679044,1738709438009,-150.0,0.00011254,2]
[351679045,1738709438018,-168.5195844,0.00011269,2]
[351679046,1738709438028,-160.93101059,0.00011273,2]
[351679047,1738709438037,-160.93101059,0.00011287,2]
[351679048,1738709438047,-160.93101059,0.00011301,2]
[351679050,1738709438056,-151.622,0.00011307,2]
[351679052,1738709438066,-2706.923,0.00011307,2]
[351679054,1738709438075,-1000.0,0.00011308,2]
[351679056,1738709438085,-160.93101059,0.00011315,2]
[351679058,1738709438095,-150.0,0.00011319,2]
[351679060,1738709438104,-500.0,0.00011327,2]
[351679062,1738709438114,-500.0,0.00011327,2]
[351679064,1738709438124,-555.56,0.00011327,2]
[351679066,1738709438134,-500.0,0.00011327,2]
[351679068,1738709438143,-363.74,0.00011327,2]
[351679069,1738709438152,-500.86068356,0.00011327,2]
[351679071,1738709438162,-727.623891,0.00011327,2]
[351679072,1738709438171,-822.69,0.00011327,2]
[351679074,1738709438181,-500.0,0.00011327,2]
[351679076,1738709438191,-500.0,0.00011327,2]
[351679077,1738709438201,-500.0,0.00011327,2]
[351679078,1738709438210,-500.0,0.00011327,2]
[351679079,1738709438219,-500.0,0.00011327,2]
[351679080,1738709438229,-165.24,0.00011327,2]
[351679081,1738709438239,-500.0,0.00011327,2]
[351679082,1738709438249,-649.05,0.00011327,2]
[351679083,1738709438258,-500.0,0.00011327,2]
[351679084,1738709438267,-500.0,0.00011327,2]
[351679085,1738709438277,-313.62,0.00011327,2]
[351679086,1738709438286,-500.0,0.00011327,2]
[351679087,1738709438296,-500.0,0.00011327,2]
[351679088,1738709438306,-500.0,0.00011327,2]
[351679089,1738709438316,-500.0,0.00011327,2]
[351679090,1738709438325,-500.0,0.00011327,2]
[351679091,1738709438335,-500.0,0.00011327,2]
[351679092,1738709438344,-500.0,0.00011327,2]
[351679093,1738709438354,-500.0,0.00011327,2]
[351679094,1738709438363,-500.0,0.00011327,2]
[351679095,1738709438374,-500.0,0.00011327,2]
[351679096,1738709438384,-500.0,0.00011327,2]
[351679097,1738709438393,-500.0,0.00011327,2]
[351679098,1738709438403,-500.0,0.00011327,2]
[351679099,1738709438412,-500.0,0.00011327,2]
[351679100,1738709438422,-500.0,0.00011327,2]
[351679101,1738709438432,-500.0,0.00011327,2]
[351679102,1738709438441,-810.31,0.00011327,2]
[351679103,1738709438451,-500.0,0.00011327,2]
[351679104,1738709438461,-384.29,0.00011327,2]
[351679105,1738709438471,-374.16,0.00011327,2]
[351679106,1738709438480,-500.0,0.00011327,2]
[351679107,1738709438490,-514.58,0.00011327,2]
[351679108,1738709438500,-500.0,0.00011327,2]
[351679109,1738709438510,-500.0,0.00011327,2]
[351679110,1738709438519,-500.0,0.00011327,2]
[351679111,1738709438528,-500.0,0.00011327,2]
[351679112,1738709438538,-500.0,0.00011327,2]
[351679113,1738709438548,-210.1,0.00011327,2]
[351679114,1738709438557,-500.0,0.00011327,2]
[351679115,1738709438566,-500.0,0.00011327,2]
[351679116,1738709438575,-500.0,0.00011327,2]
[351679117,1738709438585,-500.0,0.00011327,2]
[351679118,1738709438594,-500.0,0.00011327,2]
[351679119,1738709438603,-500.0,0.00011327,2]
[351679120,1738709438612,-515.79,0.00011327,2]
[351679121,1738709438623,-500.0,0.00011327,2]
[351679122,1738709438633,-570.11,0.00011327,2]
[351679123,1738709438642,-500.0,0.00011327,2]
[351679124,1738709438651,-500.0,0.00011327,2]
[351679125,1738709438661,-51156.84607234,0.00011327,2]
[351679126,1738709438674,-94906.28748796,0.00011327,2]
[351679134,1738709439999,-500.0,0.00011327,2]
[351679135,1738709440009,-500.0,0.00011327,2]
[351679136,1738709440019,-34985.77240505,0.00011327,2]
[351679137,1738709440037,-1607.00258999,0.00011327,2]
[351679138,1738709440129,-30000.0,0.00011327,2]
[351679139,1738709440141,-1730.11584766,0.00011327,2]
[351679140,1738709440152,-1459.715,0.00011327,2]
[351679175,1738709442780,-300.0,0.00010325,2]
[351679178,1738709442791,-38573.4,0.00011327,2]
[351679197,1738709442975,-120766.43506646,0.00011327,2]
[351679199,1738709442987,-505.00605506,0.00011327,2]
[351679203,1738709443020,-500.0,0.00011327,2]
[351679205,1738709443029,-3179.86098705,0.00011327,2]
[351679207,1738709443041,-10271.50000021,0.00011327,2]
[351679208,1738709443053,-1318.7500049,0.00011327,2]
[351679213,1738709445979,-500.0,0.00011327,2]
[351679214,1738709445989,-500.0,0.00011327,2]
[351679215,1738709445998,-788.41,0.00011327,2]
[351679216,1738709446007,-14934.80179999,0.00011327,2]
[351679217,1738709446017,-160.93101059,0.00011329,2]
[351679218,1738709446026,-160.93101059,0.00011342,2]
[351679219,1738709446035,-160.93101059,0.00011356,2]
[351679220,1738709446044,-160.93101059,0.0001137,2]
[351679221,1738709446053,-500.0,0.00011373,2]
[351679222,1738709446062,-500.0,0.00011373,2]
[351679223,1738709446072,-500.0,0.00011373,2]
[351679224,1738709446082,-160.93101059,0.00011384,2]
[351679225,1738709446091,-160.93101059,0.00011398,2]
[351679226,1738709446100,-2000.0,0.00011407,2]
[351679227,1738709446109,-200.0,0.00011407,2]
[351679228,1738709446121,-296.0,0.00011425,2]
[351679229,1738709446131,-152.45,0.00011454,2]
[351679230,1738709446140,-500.0,0.00011464,2]
[351679231,1738709446149,-500.0,0.00011464,2]
[351679232,1738709446158,-500.0,0.00011464,2]
[351679233,1738709446167,-500.0,0.00011464,2]
[351679234,1738709446177,-500.0,0.00011464,2]
[351679235,1738709446186,-500.0,0.00011464,2]
[351679236,1738709446195,-500.0,0.00011464,2]
[351679237,1738709446204,-304.15,0.00011464,2]
[351679238,1738709446213,-500.0,0.00011464,2]
[351679239,1738709446222,-500.0,0.00011464,2]
[351679240,1738709446231,-500.0,0.00011464,2]
[351679241,1738709446241,-500.0,0.00011464,2]
[351679242,1738709446250,-500.0,0.00011464,2]
[351679243,1738709446259,-500.0,0.00011464,2]
[351679244,1738709446268,-810.31,0.00011464,2]
[351679252,1738709446467,-500.0,0.00011464,2]
[351679253,1738709446478,-514.58,0.00011464,2]
[351679254,1738709446487,-588.5,0.00011464,2]
[351679255,1738709446496,-500.0,0.00011464,2]
[351679256,1738709446505,-500.0,0.00011464,2]
[351679257,1738709446515,-500.0,0.00011464,2]
[351679258,1738709446524,-500.0,0.00011464,2]
[351679259,1738709446533,-500.0,0.00011464,2]
[351679260,1738709446544,-500.0,0.00011464,2]
[351679261,1738709446553,-500.0,0.00011464,2]
[351679262,1738709446562,-500.0,0.00011464,2]
[351679263,1738709446571,-500.0,0.00011464,2]
[351679264,1738709446580,-500.0,0.00011464,2]
[351679265,1738709446589,-788.41,0.00011464,2]
[351679266,1738709446598,-500.0,0.00011464,2]
[351679267,1738709446607,-506.66884179,0.00011473,2]
[351679268,1738709446616,-163.66351274,0.00011473,2]
[351679269,1738709446626,-185.52,0.00011474,2]
[351679270,1738709446636,-206.37224495,0.00011475,2]
[351679271,1738709446645,-15424.0,0.00011479,2]
[351679272,1738709446655,-150.57,0.00011488,2]
[351679273,1738709446664,-150.57,0.00011488,2]
[351679274,1738709446674,-150.57,0.00011488,2]
[351679275,1738709446683,-150.57,0.00011488,2]
[351679276,1738709446696,-150.57,0.00011488,2]
[351679277,1738709446705,-150.57,0.00011488,2]
[351679278,1738709446714,-150.57,0.00011488,2]
[351679279,1738709446723,-150.57,0.00011488,2]
[351679280,1738709446733,-150.57,0.00011488,2]
[351679281,1738709446742,-150.57,0.00011488,2]
[351679282,1738709446751,-150.57,0.00011488,2]
[351679283,1738709446761,-150.57,0.00011488,2]
[351679284,1738709446770,-150.57,0.00011488,2]
[351679285,1738709446781,-150.57,0.00011488,2]
[351679286,1738709446789,-150.57,0.00011488,2]
[351679287,1738709446800,-150.57,0.00011488,2]
[351679288,1738709446810,-150.57,0.00011488,2]
[351679289,1738709446819,-150.57,0.00011488,2]
[351679290,1738709446828,-150.57,0.00011488,2]
[351679291,1738709446837,-150.57,0.00011488,2]
[351679292,1738709446846,-150.57,0.00011488,2]
[351679293,1738709446855,-150.57,0.00011488,2]
[351679294,1738709446864,-150.57,0.00011488,2]
[351679295,1738709446874,-150.57,0.00011488,2]
[351679296,1738709446883,-150.57,0.00011488,2]
[351679297,1738709446893,-150.57,0.00011488,2]
[351679298,1738709446903,-150.57,0.00011488,2]
[351679299,1738709446912,-150.57,0.00011488,2]
[351679300,1738709446921,-150.57,0.00011488,2]
[351679301,1738709446930,-150.57,0.00011488,2]
[351679302,1738709446939,-150.57,0.00011488,2]
[351679303,1738709446948,-150.57,0.00011488,2]
[351679304,1738709446958,-150.57,0.00011488,2]
[351679305,1738709446967,-150.57,0.00011488,2]
[351679306,1738709446977,-150.57,0.00011488,2]
[351679307,1738709446986,-150.57,0.00011488,2]
[351679308,1738709446995,-150.57,0.00011488,2]
[351679309,1738709447004,-150.57,0.00011488,2]
[351679310,1738709447014,-150.57,0.00011488,2]
[351679311,1738709447023,-150.57,0.00011488,2]
[351679312,1738709447032,-150.57,0.00011488,2]
[351679313,1738709447041,-150.57,0.00011488,2]
[351679314,1738709447051,-150.57,0.00011488,2]
[351679315,1738709447060,-150.57,0.00011488,2]